bitfinex-derivatives/quotes_SOLF0:USTF0_20250516
["timestamp","ask_amount","ask_price","bid_price","bid_amount"]
[1747439472654,64.56,167.53,167.45,5.9697]
[1747439472850,65.42,167.52,167.45,5.9697]
[1747439473051,5.9687,167.49,167.45,5.9697]
[1747439473249,5.9687,167.49,167.46,5.9695]
[1747439474556,64.52,167.49,167.39,65.42]
[1747439475056,5.969,167.48,167.45,5.9698]
[1747439476054,5.9692,167.47,167.44,5.9701]
[1747439476255,64.52,167.49,167.39,65.42]
[1747439477359,5.9689,167.48,167.39,65.42]
[1747439478158,64.52,167.49,167.45,5.9697]
[1747439478459,64.52,167.49,167.4,5.10768606]
[1747439478760,5.9678,167.51,167.41,64.38]
[1747439478960,64.4,167.52,167.41,64.38]
[1747439479354,70.3675,167.52,167.41,64.38]
[1747439479765,70.3675,167.52,167.48,5.9685]
[1747439481766,70.3675,167.52,167.47,5.969]
[1747439481767,5.9678,167.51,167.47,5.969]
[1747439482064,64.4,167.52,167.47,5.969]
[1747439482259,64.4,167.52,167.44,65.44]
[1747439482464,64.4,167.52,167.46,5.9693]
[1747439483066,5.9683,167.5,167.46,5.9693]
[1747439484560,5.9683,167.5,167.47,5.9691]
[1747439484756,65.44,167.53,167.44,65.44]
[1747439484963,129.62,167.53,167.44,65.44]
[1747439485166,65.44,167.53,167.44,65.44]
[1747439485462,129.62,167.53,167.44,65.44]
[1747439485665,129.62,167.53,167.47,5.9688]
[1747439485868,5.9677,167.51,167.44,65.44]
[1747439486262,64.16,167.52,167.44,65.44]
[1747439486664,64.16,167.52,167.47,5.9689]
[1747439486864,5.968,167.51,167.47,5.9689]
[1747439488468,5.968,167.51,167.48,5.9688]
[1747439490473,64.16,167.52,167.44,65.44]
[1747439490666,64.16,167.52,167.41,64.24]
[1747439492075,5.9694,167.47,167.44,5.97]
[1747439492269,70.0094,167.47,167.44,5.97]
[1747439492968,64.04,167.47,167.45,5.9698]
[1747439493177,64.04,167.47,167.41,64.24]
[1747439494475,70.0091,167.47,167.44,5.97]
[1747439495778,69.8689,167.48,167.45,5.9698]
[1747439496069,63.9,167.48,167.41,64.24]
[1747439496372,5.10768606,167.53,167.41,64.24]
[1747439496579,128.14,167.52,167.41,64.24]
[1747439497083,63.86,167.51,167.41,64.24]
[1747439497277,63.86,167.51,167.42,5.10768606]
[1747439497485,70.227,167.53,167.43,63.84]
[1747439497782,64.26,167.53,167.43,69.6566]
[1747439498284,64.26,167.57,167.45,5.10768606]
[1747439498487,63.82,167.56,167.46,64.26]
[1747439499184,5.9668,167.54,167.46,64.26]
[1747439499384,63.82,167.56,167.46,64.26]
[1747439500287,5.967,167.53,167.46,64.26]
[1747439501585,5.967,167.53,167.49,5.9682]
[1747439503083,5.967,167.53,167.5,5.968]
[1747439503779,5.9668,167.54,167.5,5.968]
[1747439504487,5.9668,167.54,167.51,5.9677]
[1747439505286,5.9664,167.55,167.46,64.26]
[1747439505586,63.82,167.56,167.46,64.26]
[1747439505888,63.5,167.56,167.46,64.26]
[1747439506380,69.4458,167.57,167.46,64.26]
[1747439506576,63.46,167.56,167.44,64.24]
[1747439506779,64.24,167.55,167.44,68.1132]
[1747439506986,5.9674,167.52,167.44,68.1132]
[1747439507485,5.9674,167.52,167.48,5.9685]
[1747439507786,5.9671,167.53,167.44,68.1132]
[1747439509487,5.9668,167.54,167.5,5.9678]
[1747439509687,69.2868,167.54,167.5,5.9678]
[1747439509983,69.2868,167.54,167.51,5.9677]
[1747439510184,63.32,167.54,167.48,64.24]
[1747439510383,5.9663,167.55,167.48,64.24]
[1747439510882,69.2263,167.55,167.48,64.24]
[1747439511082,5.9667,167.54,167.51,5.9675]
[1747439511279,5.1350411,167.53,167.41,64.24]
[1747439511485,64.24,167.52,167.41,64.24]
[1747439511685,5.9693,167.47,167.43,5.9703]
[1747439512088,63.22,167.51,167.43,5.9703]
[1747439513390,63.22,167.51,167.44,5.9701]
[1747439513591,63.22,167.51,167.41,64.24]
[1747439513790,5.9691,167.48,167.41,64.24]
[1747439513991,63.22,167.51,167.41,64.24]
[1747439514387,5.969,167.48,167.45,5.9697]
[1747439514591,5.969,167.48,167.41,64.24]
[1747439514792,5.9018,167.53,167.41,64.24]
[1747439514988,5.9683,167.5,167.41,64.24]
[1747439515293,63.16,167.52,167.41,64.24]
[1747439515492,5.9688,167.48,167.41,64.24]
[1747439515992,5.9688,167.48,167.45,5.9698]
[1747439516288,69.1418,167.53,167.41,64.24]
[1747439516492,63.16,167.52,167.41,64.24]
[1747439516887,5.9691,167.48,167.41,64.24]
[1747439517192,69.1291,167.48,167.41,64.24]
[1747439517893,69.1291,167.48,167.44,5.97]
[1747439518191,63.16,167.48,167.41,64.24]
[1747439518691,63.16,167.48,167.43,5.9704]
[1747439519286,5.9697,167.46,167.42,5.9708]
[1747439519490,5.9697,167.46,167.41,64.24]
[1747439519888,68.39555965,167.45,167.33,63.26]
[1747439520088,63.98,167.44,167.33,63.26]
[1747439520394,5.9715,167.41,167.36,5.973]
[1747439520789,5.9715,167.41,167.33,64.45524293]
[1747439520988,5.9715,167.41,167.37,5.9726]
[1747439521394,63.98,167.44,167.33,64.45524293]
[1747439521698,63.98,167.44,167.4,5.9716]
[1747439521995,69.9503,167.44,167.4,5.9716]
[1747439522994,63.98,167.44,167.39,5.9719]
[1747439523694,69.9506,167.44,167.39,5.9719]
[1747439524594,9.803,167.46,167.37,63.26]
[1747439524797,64.86,167.45,167.37,63.26]
[1747439525293,70.8301,167.45,167.41,5.9711]
[1747439528001,5.9703,167.44,167.4,5.9715]
[1747439528499,5.9711,167.42,167.38,5.9723]
[1747439528688,5.9711,167.42,167.18,23.9174]
[1747439528689,10.27977574,167.39,167.06,27.88939153]
[1747439528896,5.13988787,167.29,167.1,5.13988787]
[1747439529200,141.8,167.28,167.13,5.13988787]
[1747439529405,141.8,167.28,167.14,3.05400165]
[1747439529701,141.8,167.28,167.15,1.19653006]
[1747439529901,141.8,167.28,167.15,71.93653006]
[1747439530094,5.13988787,167.26,167.15,71.93653006]
[1747439530292,5.13988787,167.26,167.15,1.19653006]
[1747439530901,5.13988787,167.26,167.13,5.9812]
[1747439531301,8.24412299,167.27,167.13,5.9812]
[1747439531904,8.24412299,167.27,167.14,5.9808]
[1747439532503,8.24412299,167.27,167.13,5.9812]
[1747439532699,8.24412299,167.27,167.11,70.74]
[1747439533194,8.24412299,167.27,167.14,5.9808]
[1747439533600,5.9796,167.18,167.14,5.9808]
[1747439534202,70.96,167.2,167.11,70.74]
[1747439534596,8.24415043,167.27,167.11,70.74]
[1747439534802,141.76,167.26,167.17,5.9797]
[1747439534998,515.98,167.28,167.16,70.78]
[1747439535200,5.9771,167.25,167.21,5.9783]
[1747439535707,5.9788,167.2,167.09,70.8]
[1747439535904,5.9788,167.2,167.1,1.9996]
[1747439536106,72.04,167.22,167.1,1.9996]
[1747439537409,5.9803,167.16,167.11,5.9819]
[1747439537603,72.04,167.22,167.1,1.9996]
[1747439538710,5.9799,167.17,167.11,5.9817]
[1747439539105,5.9799,167.17,167.1,1.9996]
[1747439540406,5.9799,167.17,167.13,5.981]
[1747439540603,70.82,167.19,167.1,1.9996]
[1747439541106,5.9795,167.18,167.1,1.9996]
[1747439541702,5.9795,167.18,167.13,5.981]
[1747439542903,5.9795,167.18,167.14,5.9806]
[1747439545311,5.9801,167.17,167.13,5.9812]
[1747439545712,70.82,167.19,167.1,1.9996]
[1747439546602,5.9808,167.15,167.11,5.9818]
[1747439546799,5.9808,167.15,167.1,1.9996]
[1747439546998,70.98,167.17,167.05,3.8965]
[1747439547700,5.9823,167.11,167.07,5.9832]
[1747439547904,5.9823,167.11,167.05,3.8965]
[1747439549114,5.9817,167.12,167.05,3.8965]
[1747439549610,70.98,167.17,167.05,3.8965]
[1747439549915,70.78,167.16,167.05,3.8965]
[1747439550110,70.86,167.18,167.05,3.8965]
[1747439550111,5.9799,167.17,167.05,3.8965]
[1747439550316,70.74,167.17,167.05,3.8965]
[1747439550612,5.9801,167.17,167.13,5.9811]
[1747439550819,70.72,167.18,167.09,70.86]
[1747439551016,70.72,167.18,167.13,5.9813]
[1747439551220,515.98,167.28,167.09,70.86]
[1747439551420,141.64,167.26,167.1,2.0081]
[1747439551612,141.64,167.26,167.16,5.9802]
[1747439551812,5.9787,167.21,167.16,5.9802]
[1747439552014,70.76,167.21,167.16,5.9802]
[1747439552221,70.76,167.21,167.17,5.9798]
[1747439552516,70.76,167.21,167.1,2.0081]
[1747439553018,70.64,167.22,167.1,2.0081]
[1747439553322,5.9781,167.22,167.1,2.0081]
[1747439553714,5.9781,167.22,167.18,5.9792]
[1747439553916,70.58,167.23,167.18,5.9792]
[1747439554910,5.9782,167.22,167.19,5.9791]
[1747439555114,70.58,167.23,167.15,70.86]
[1747439555315,515.98,167.28,167.15,70.86]
[1747439555621,76.3766,167.27,167.15,70.86]
[1747439556221,5.9778,167.23,167.15,70.86]
[1747439556421,70.4,167.27,167.15,70.86]
[1747439556718,70.4,167.27,167.16,5.98]
[1747439556923,70.4,167.27,167.15,70.86]
[1747439557224,70.4,167.27,167.16,5.9802]
[1747439557623,5.9788,167.2,167.16,5.9802]
[1747439558528,73.32,167.22,167.15,70.86]
[1747439560427,73.32,167.22,167.16,5.98]
[1747439560723,73.32,167.22,167.15,70.86]
[1747439561227,72.96,167.26,167.15,70.86]
[1747439561529,5.9773,167.25,167.2,5.9784]
[1747439563429,5.9774,167.24,167.2,5.9784]
[1747439565738,5.9774,167.24,167.21,5.9783]
[1747439565930,5.9771,167.25,167.15,70.86]
[1747439566234,72.58,167.26,167.15,70.86]
[1747439566437,148.31769405,167.32,167.15,70.86]
[1747439566627,72.44,167.28,167.15,70.86]
[1747439566826,5.9765,167.27,167.23,5.9774]
[1747439567437,5.9765,167.27,167.24,5.9773]
[1747439568134,5.976,167.28,167.24,5.9773]
[1747439568434,72.94,167.29,167.21,1.8845]
[1747439568734,5.9756,167.29,167.22,4.0468]
[1747439569032,220.53769405,167.32,167.22,4.0468]
[1747439569337,5.9754,167.3,167.22,4.0468]
[1747439569631,5.9754,167.3,167.26,5.9764]
[1747439570935,5.9754,167.3,167.27,5.9762]
[1747439572135,5.975,167.31,167.22,4.0468]
[1747439572839,154.29229405,167.32,167.22,4.0468]
[1747439573439,5.9749,167.31,167.28,5.9757]
[1747439573836,5.9749,167.31,167.25,72.94]
[1747439574037,5.9749,167.31,167.27,5.9761]
[1747439574237,5.9749,167.31,167.25,72.94]
[1747439574443,5.9749,167.31,167.27,5.976]
[1747439575242,5.9752,167.3,167.25,72.94]
[1747439575445,148.31769405,167.32,167.25,72.94]
[1747439575740,148.31769405,167.32,167.26,5.9765]
[1747439576446,5.9754,167.3,167.27,5.9763]
[1747439576641,148.31769405,167.32,167.25,72.94]
[1747439577534,5.975,167.31,167.28,5.9759]
[1747439577735,148.31769405,167.32,167.22,4.0468]
[1747439578144,5.9766,167.27,167.22,10.0245]
[1747439578339,73.98,167.29,167.22,4.0468]
[1747439578748,5.9769,167.26,167.22,4.0468]
[1747439578941,73.98,167.29,167.22,4.0468]
[1747439579244,73.98,167.29,167.17,72.92]
[1747439579445,5.9775,167.24,167.18,75.8183]
[1747439579645,5.9775,167.24,167.18,77.6802]
[1747439580048,5.9775,167.24,167.2,5.9786]
[1747439580446,5.9771,167.25,167.18,77.6802]
[1747439580646,5.9771,167.25,167.2,5.9787]
[1747439580841,5.9771,167.25,167.18,77.6802]
[1747439581046,5.9771,167.25,167.2,5.9784]
[1747439581248,5.9771,167.25,167.18,77.6802]
[1747439581451,5.9767,167.26,167.18,77.6802]
[1747439581650,5.9767,167.26,167.22,5.9778]
[1747439581846,146.9,167.29,167.18,77.6802]
[1747439582048,5.9757,167.29,167.18,77.6802]
[1747439582247,5.9757,167.29,167.24,5.9771]
[1747439582544,5.9757,167.29,167.22,72.92]
[1747439582746,5.9759,167.28,167.22,72.92]
[1747439583050,5.9759,167.28,167.24,5.9771]
[1747439585752,5.9757,167.29,167.25,5.9769]
[1747439585946,294.85769405,167.32,167.22,72.92]
[1747439586954,5.9765,167.27,167.23,5.9777]
[1747439587151,5.9765,167.27,167.22,72.92]
[1747439587452,5.976,167.28,167.22,72.92]
[1747439587652,294.85769405,167.32,167.22,72.92]
[1747439588155,5.9754,167.3,167.26,5.9764]
[1747439588553,294.85769405,167.32,167.22,72.92]
[1747439588756,5.9756,167.29,167.25,5.9769]
[1747439590255,5.9756,167.29,167.26,5.9766]
[1747439591662,5.9753,167.3,167.26,5.9766]
[1747439592058,294.85769405,167.32,167.26,5.9766]
[1747439592259,303.09633716,167.32,167.18,76.5602]
[1747439592454,8.23932601,167.31,167.18,76.5602]
[1747439592654,8.23995577,167.3,167.18,76.5602]
[1747439592954,5.9777,167.23,167.2,5.9786]
[1747439594464,5.14971769,167.25,167.13,72.76]
[1747439595059,5.9794,167.19,167.13,72.76]
[1747439595254,73.18,167.22,167.13,72.76]
[1747439595455,145.94,167.22,167.13,72.76]
[1747439595655,145.94,167.22,167.13,78.7413]
[1747439596063,5.9803,167.16,167.13,78.7413]
[1747439596263,5.9803,167.16,167.13,72.76]
[1747439596560,145.94,167.22,167.13,72.76]
[1747439596763,5.9806,167.15,167.12,5.9815]
[1747439596965,145.94,167.22,167.11,5.9819]
[1747439597155,5.981,167.14,167.09,72.76]
[1747439597565,5.981,167.14,167.1,5.9821]
[1747439600158,72.62,167.18,167.09,72.76]
[1747439600566,5.9802,167.16,167.12,5.9814]
[1747439602570,5.9802,167.16,167.13,5.9812]
[1747439602760,5.9799,167.17,167.09,72.76]
[1747439602960,72.3,167.2,167.09,72.76]
[1747439603158,5.9793,167.19,167.09,72.76]
[1747439603670,78.279,167.2,167.16,5.98]
[1747439603969,72.2,167.24,167.14,72.8]
[1747439604271,72.2,167.24,167.15,2.0561]
[1747439604469,72.2,167.24,167.08,1.8611]
[1747439604470,8.24435282,167.23,167.08,74.6611]
[1747439604772,72.2,167.24,167.09,2.0561]
[1747439604968,5.9802,167.16,167.12,5.9814]
[1747439605172,74.18,167.19,167.09,2.0561]
[1747439605364,5.9802,167.16,167.12,5.9816]
[1747439607573,5.98,167.17,167.13,5.9812]
[1747439607874,74.14,167.19,167.13,5.9812]
[1747439608573,5.9801,167.17,167.13,5.9812]
[1747439608873,5.9801,167.17,167.09,2.0561]
[1747439609271,5.9795,167.18,167.09,2.0561]
[1747439609473,74.14,167.19,167.09,2.0561]
[1747439610375,5.9793,167.19,167.09,2.0561]
[1747439610772,5.9793,167.19,167.15,5.9803]
[1747439613275,78.7788,167.2,167.17,5.9798]
[1747439613477,72.8,167.24,167.17,5.9798]
[1747439613679,73.24,167.23,167.17,5.9798]
[1747439613878,5.9788,167.2,167.17,5.9798]
[1747439614880,73.24,167.23,167.09,2.0561]
[1747439615177,8.24435282,167.22,167.09,2.0561]
[1747439615374,5.9805,167.16,167.09,2.0561]
[1747439615573,76.06,167.18,167.09,2.0561]
[1747439616183,5.9806,167.15,167.09,2.0561]
[1747439616479,76.06,167.18,167.09,2.0561]
[1747439617081,5.9808,167.15,167.11,5.9819]
[1747439617277,76.06,167.18,167.11,5.9819]
[1747439617982,76.06,167.18,167.12,5.9816]
[1747439618182,5.9805,167.16,167.12,5.9816]
[1747439618383,76.06,167.18,167.12,5.9816]
[1747439619587,5.9807,167.15,167.12,5.9816]
[1747439620386,5.9807,167.15,167.11,5.9819]
[1747439620587,5.9809,167.14,167.11,5.9819]
[1747439621485,5.9807,167.15,167.11,5.9819]
[1747439622799,5.9809,167.14,167.11,5.9819]
[1747439623705,5.9816,167.12,167.09,8.0387]
[1747439623907,76.06,167.18,167.09,2.0561]
[1747439624203,5.9814,167.13,167.1,5.9823]
[1747439626802,5.9811,167.14,167.1,5.9823]
[1747439627005,76.06,167.18,167.09,2.0561]
[1747439627402,5.9804,167.16,167.09,2.0561]
[1747439627604,76.06,167.18,167.13,5.9812]
[1747439628003,5.9802,167.17,167.13,5.9812]
[1747439628607,82.0397,167.18,167.14,5.9808]
[1747439628802,75.96,167.23,167.12,75.96]
[1747439629008,75.96,167.23,167.13,2.023]
[1747439629409,75.26,167.25,167.13,2.023]
[1747439629909,5.9776,167.24,167.2,5.9788]
[1747439630409,5.9776,167.24,167.19,5.979]
[1747439630610,5.9778,167.23,167.19,5.979]
[1747439632110,5.9774,167.24,167.2,5.9787]
[1747439632405,11.9471,167.35,167.17,75.96]
[1747439632612,74.92,167.3,167.23,5.9776]
[1747439633211,5.9762,167.28,167.23,5.9776]
[1747439633510,74.88,167.29,167.19,1.9642]
[1747439634413,5.9763,167.27,167.22,5.9781]
[1747439635315,5.9763,167.27,167.23,5.9777]
[1747439637209,5.9763,167.27,167.24,5.9773]
[1747439639315,74.88,167.29,167.19,1.9642]
[1747439639316,5.9771,167.25,167.19,1.9642]
[1747439639710,5.9771,167.25,167.21,5.9781]
[1747439639910,5.9768,167.26,167.19,1.9642]
[1747439640316,5.9772,167.25,167.19,1.9642]
[1747439640620,74.88,167.29,167.19,1.9642]
[1747439640918,5.9769,167.26,167.21,5.9781]
[1747439641217,5.9769,167.26,167.19,1.9642]
[1747439641719,5.977,167.25,167.21,5.9782]
[1747439642018,151.0,167.32,167.19,1.9642]
[1747439642214,5.9757,167.29,167.25,5.9767]
[1747439642410,151.0,167.32,167.22,75.94]
[1747439642617,5.9758,167.29,167.24,5.9771]
[1747439642816,5.9758,167.29,167.22,75.94]
[1747439644217,5.9753,167.3,167.26,5.9766]
[1747439646420,5.9756,167.29,167.26,5.9766]
[1747439647322,5.9752,167.3,167.27,5.9762]
[1747439647618,75.96,167.32,167.22,75.94]
[1747439647821,5.9751,167.31,167.27,5.976]
[1747439648322,150.3,167.32,167.29,5.9753]
[1747439648724,5.9744,167.33,167.29,5.9753]
[1747439648918,5.9739,167.34,167.3,5.975]
[1747439649223,80.2339,167.34,167.3,5.975]
[1747439649410,80.2339,167.34,167.27,74.64]
[1747439649612,5.9742,167.33,167.27,74.64]
[1747439650021,5.9742,167.33,167.3,5.975]
[1747439651322,74.64,167.38,167.27,74.64]
[1747439651524,73.96,167.37,167.28,1.9567]
[1747439651729,73.96,167.37,167.28,3.8677]
[1747439651929,5.9738,167.34,167.28,3.8677]
[1747439652222,73.9,167.37,167.28,3.8677]
[1747439652923,5.9737,167.35,167.28,3.8677]
[1747439653319,73.9,167.37,167.28,3.8677]
[1747439654720,5.9737,167.35,167.31,5.9746]
[1747439655022,73.9,167.37,167.31,5.9746]
[1747439655221,73.6,167.37,167.31,5.9746]
[1747439655420,5.9741,167.34,167.31,5.9746]
[1747439659326,5.9741,167.34,167.28,3.8677]
[1747439659927,5.9736,167.35,167.28,3.8677]
[1747439660125,5.9736,167.35,167.28,5.8077]
[1747439660430,5.9736,167.35,167.31,5.9747]
[1747439660731,5.974,167.34,167.31,5.9747]
[1747439661031,74.62,167.39,167.32,5.9745]
[1747439661226,5.9726,167.38,167.32,74.62]
[1747439661436,24.04373691,167.47,167.32,147.86]
[1747439661437,74.62,167.47,167.32,147.86]
[1747439661622,74.32,167.46,167.32,147.86]
[1747439661827,5.9709,167.42,167.32,147.86]
[1747439662027,74.62,167.47,167.42,5.9709]
[1747439662228,74.4,167.51,167.37,155.71696664]
[1747439662533,75.59395856,167.51,167.38,78.2341]
[1747439663030,5.9692,167.47,167.38,78.2341]
[1747439664035,5.9695,167.46,167.41,5.9709]
[1747439664731,5.9699,167.45,167.41,5.9709]
[1747439665222,74.2,167.49,167.42,5.9709]
[1747439665626,5.9694,167.47,167.42,5.9709]
[1747439665929,74.2,167.49,167.43,5.9705]
[1747439666129,5.9689,167.48,167.43,5.9705]
[1747439666329,5.9689,167.48,167.38,78.2341]
[1747439666527,75.01395856,167.51,167.38,84.92116888]
[1747439666723,5.9681,167.5,167.38,84.92116888]
[1747439667733,5.9681,167.5,167.45,5.9695]
[1747439668427,5.9681,167.5,167.46,5.9694]
[1747439668933,5.9681,167.5,167.42,74.58]
[1747439669130,5.9685,167.49,167.43,2.0161]
[1747439669731,5.9682,167.5,167.46,5.9693]
[1747439670431,5.9685,167.49,167.46,5.9693]
[1747439671830,1.19395856,167.51,167.47,5.9691]
[1747439672033,5.9682,167.5,167.47,5.9691]
[1747439672530,664.64,167.53,167.47,5.9691]
[1747439672836,664.64,167.53,167.46,5.9694]
[1747439674137,664.64,167.53,167.43,75.3761]
[1747439675030,5.9681,167.5,167.46,5.9694]
[1747439675235,664.64,167.53,167.46,5.9694]
[1747439676234,5.9686,167.49,167.46,5.9694]
[1747439677937,5.9688,167.48,167.46,5.9694]
[1747439678838,5.9685,167.49,167.46,5.9695]
[1747439679340,5.9685,167.49,167.47,5.9691]
[1747439680540,5.9682,167.5,167.47,5.9691]
[1747439681140,5.9679,167.51,167.48,5.9687]
[1747439681342,5.9679,167.51,167.43,75.3761]
[1747439681536,5.9679,167.51,167.44,1.9107]
[1747439681744,74.62,167.53,167.5,5.9679]
[1747439681944,74.62,167.53,167.45,1.9902]
[1747439682439,5.9674,167.53,167.49,5.9682]
[1747439683342,5.9674,167.53,167.5,5.968]
[1747439684842,5.9675,167.52,167.5,5.968]
[1747439685342,5.9671,167.53,167.5,5.968]
[1747439686044,5.9678,167.51,167.45,1.9902]
[1747439686237,72.68,167.57,167.45,1.9902]
[1747439686540,5.9676,167.52,167.49,5.9682]
[1747439690251,71.04,167.55,167.45,1.9902]
[1747439690440,77.72501707,167.55,167.45,1.9902]
[1747439690846,5.9679,167.51,167.48,5.9685]
[1747439693242,5.9682,167.5,167.48,5.9685]
[1747439693546,71.04,167.55,167.48,5.9685]
[1747439693741,5.9674,167.52,167.49,5.9684]
[1747439694147,71.04,167.55,167.49,5.9684]
[1747439694742,5.9673,167.53,167.45,1.9902]
[1747439694941,71.04,167.55,167.45,1.9902]
[1747439695445,72.68,167.57,167.45,1.9902]
[1747439695650,143.18,167.57,167.45,1.9902]
[1747439696139,5.9672,167.53,167.5,5.9679]
[1747439697747,70.32,167.57,167.45,1.9902]
[1747439697948,70.32,167.57,167.45,74.6502]
[1747439698646,5.9678,167.51,167.48,5.9685]
[1747439700050,5.9678,167.51,167.49,5.9684]
[1747439700348,70.32,167.57,167.45,74.6502]
[1747439700537,70.32,167.57,167.46,5.9694]
[1747439700735,5.9687,167.49,167.46,5.9694]
[1747439701346,5.9687,167.49,167.47,5.9692]
[1747439701547,5.9687,167.49,167.45,74.6502]
[1747439701745,70.32,167.57,167.45,74.6502]
[1747439701946,6.68501707,167.52,167.43,7.9864]
[1747439702145,142.56,167.51,167.43,7.9864]
[1747439702451,5.9697,167.46,167.43,7.9864]
[1747439704146,5.9699,167.45,167.43,2.0161]
[1747439704350,142.56,167.51,167.42,5.9708]
[1747439704753,5.9701,167.45,167.43,5.9705]
[1747439705243,5.9701,167.45,167.42,5.9707]
[1747439705450,142.56,167.51,167.41,72.66]
[1747439705646,6.68501707,167.49,167.41,72.66]
[1747439705842,6.68501707,167.49,167.39,2.0383]
[1747439706052,5.9708,167.43,167.4,5.9714]
[1747439706350,5.9708,167.43,167.39,2.0383]
[1747439706546,6.68501707,167.49,167.39,2.0383]
[1747439707554,5.9706,167.43,167.39,2.0383]
[1747439708454,5.9706,167.43,167.4,5.9714]
[1747439710655,5.9706,167.43,167.41,5.9712]
[1747439712558,5.9706,167.43,167.4,5.9715]
[1747439713662,5.9704,167.44,167.41,5.9712]
[1747439715668,5.9706,167.43,167.41,5.9712]
[1747439717269,5.9706,167.43,167.39,2.0383]
[1747439717270,69.5,167.46,167.42,5.9707]
[1747439718365,6.68501707,167.49,167.43,5.9704]
[1747439718573,68.5,167.48,167.39,2.0383]
[1747439718771,68.5,167.48,167.38,1.8696]
[1747439718973,68.5,167.48,167.38,7.8418]
[1747439720269,68.5,167.48,167.39,5.972]
[1747439721170,5.9712,167.42,167.39,5.972]
[1747439721774,5.9713,167.41,167.39,5.972]
[1747439723873,5.9713,167.41,167.38,7.8418]
[1747439725776,69.88,167.46,167.38,1.8696]
[1747439725974,138.76,167.46,167.38,1.8696]
[1747439726177,69.9,167.5,167.39,69.9]
[1747439726374,5.9694,167.47,167.44,5.97]
[1747439730382,69.9,167.5,167.38,1.8696]
[1747439730676,69.9,167.5,167.39,69.88]
[1747439731067,5.9704,167.44,167.41,5.9711]
[1747439731681,6.68501707,167.46,167.35,1.9198]
[1747439731987,69.88,167.45,167.35,1.9198]
[1747439732472,5.9719,167.4,167.37,5.9727]
[1747439733277,5.9714,167.41,167.38,5.9724]
[1747439733580,5.9714,167.41,167.35,1.9198]
[1747439734182,5.9714,167.41,167.38,5.9724]
[1747439734382,5.9717,167.4,167.35,1.9198]
[1747439734585,69.88,167.45,167.35,1.9198]
[1747439735079,5.9706,167.43,167.35,1.9198]
[1747439736285,5.9706,167.43,167.39,5.9718]
[1747439737585,5.9706,167.43,167.4,5.9713]
[1747439741679,69.88,167.45,167.36,5.9728]
[1747439741886,6.68501707,167.43,167.32,71.64]
[1747439742085,71.84,167.42,167.32,71.64]
[1747439742385,5.9727,167.37,167.32,71.64]
[1747439742882,5.9731,167.36,167.32,71.64]
[1747439743385,5.973,167.37,167.32,71.64]
[1747439744187,5.972,167.39,167.32,71.64]
[1747439745590,5.972,167.39,167.35,5.9732]
[1747439745786,5.972,167.39,167.32,71.64]
[1747439746384,71.64,167.4,167.2,516.1]